bitfinex/quotes_ETHUSD_20241120
["timestamp","ask_amount","ask_price","bid_price","bid_amount"]
[1732136818058,3.25585,3071.4,3070.9,4.06461]
[1732136818059,0.78175272,3071.4,3070.9,4.06461]
[1732136818471,3.25556,3071.7,3070.9,4.06461]
[1732136818472,3.25556,3071.7,3071.1,3.25616]
[1732136818758,0.7642,3071.8,3071.0,3.25617]
[1732136818759,3.25569,3071.6,3071.0,3.25617]
[1732136819069,4.01971,3071.8,3071.0,3.25617]
[1732136819222,4.01971,3071.8,3071.2,3.25602]
[1732136819417,3.25553,3071.7,3071.2,3.25602]
[1732136819640,3.25553,3071.7,3071.1,3.25614]
[1732136819817,1.53897572,3071.8,3070.9,0.8083]
[1732136819818,1.53897572,3071.8,3071.2,3.25605]
[1732136820016,4.79439572,3071.8,3071.2,3.25602]
[1732136820467,4.79439572,3071.8,3071.0,3.2562]
[1732136820468,4.00631,3072.1,3071.4,4.01487]
[1732136820682,0.45748556,3072.0,3071.2,0.7591]
[1732136820843,3.25568,3071.6,3071.2,0.7591]
[1732136821319,3.25542,3071.8,3071.2,0.7591]
[1732136821522,3.25569,3071.6,3071.2,0.7591]
[1732136821733,3.25557,3071.7,3071.2,0.7591]
[1732136821934,3.75537853,3071.9,3071.3,3.25594]
[1732136822435,3.25545,3071.8,3071.3,3.25594]
[1732136822863,3.25545,3071.8,3071.2,4.01515]
[1732136823071,3.25552,3071.7,3071.2,0.7591]
[1732136823272,3.22791607,3071.7,3071.2,0.7591]
[1732136823877,0.7512,3072.1,3071.2,0.7591]
[1732136824042,3.2552,3072.0,3071.5,3.25566]
[1732136824242,3.2552,3072.0,3071.3,3.25586]
[1732136824243,3.25537,3071.9,3071.3,3.25586]
[1732136825441,3.2552,3072.0,3071.2,4.0151]
[1732136825619,1.12364437,3072.1,3071.2,0.7591]
[1732136825620,3.25549,3071.8,3071.2,0.7591]
[1732136825765,3.25554,3071.7,3071.2,4.01508]
[1732136825968,3.25554,3071.7,3071.2,4.01514]
[1732136826172,3.25554,3071.7,3071.2,4.01512]
[1732136826475,3.25554,3071.7,3071.2,4.01514]
[1732136826679,3.25533,3071.9,3071.2,4.01514]
[1732136826680,6.51073,3071.9,3071.2,4.01514]
[1732136827049,3.25543,3071.8,3071.2,4.01514]
[1732136828097,4.27884737,3071.9,3071.3,3.25594]
[1732136828678,4.27884737,3071.9,3071.4,3.25582]
[1732136829187,3.25533,3071.9,3071.4,3.25582]
[1732136830225,6.5099,3072.3,3071.6,3.25563]
[1732136830375,3.25491,3072.3,3071.7,3.656733]
[1732136830571,0.7789,3072.4,3071.9,3.25524]
[1732136831003,3.25472,3072.5,3072.0,0.8043]
[1732136831593,3.25479,3072.4,3072.0,0.8043]
[1732136831829,3.25539,3071.9,3071.3,4.06018]
[1732136832119,3.25539,3071.9,3071.3,0.8043]
[1732136832270,3.25552,3071.7,3071.3,0.8043]
[1732136832471,3.25583,3071.5,3071.0,0.8043]
[1732136832837,4.03804,3072.0,3071.1,3.25615]
[1732136832838,3.25557,3071.7,3071.1,3.25615]
[1732136833125,3.25536,3071.9,3071.4,0.8043]
[1732136833425,3.2557,3071.6,3071.0,3.25619]
[1732136833570,6.46141,3071.6,3071.0,3.25619]
[1732136833920,3.2559,3071.4,3070.8,3.25644]
[1732136834126,3.25568,3071.6,3070.9,0.406074]
[1732136834310,3.25568,3071.6,3071.0,3.6224514]
[1732136834631,3.25568,3071.6,3071.1,3.25616]
[1732136834775,3.25568,3071.6,3071.0,3.2562]
[1732136835378,3.25568,3071.6,3071.1,3.2561]
[1732136835621,3.25556,3071.7,3071.0,3.25619]
[1732136835920,3.25547,3071.8,3071.1,0.8043]
[1732136835921,3.25564,3071.6,3071.1,0.8043]
[1732136836218,3.25564,3071.6,3071.1,4.06036]
[1732136836419,3.25564,3071.6,3071.1,0.8043]
[1732136836622,3.25548,3071.8,3071.1,0.8043]
[1732136836842,4.03806,3072.0,3071.4,3.25575]
[1732136837001,3.25536,3071.9,3071.5,0.8043]
[1732136837199,0.7828,3072.3,3071.5,1.210318]
[1732136837502,3.25552,3071.7,3070.9,0.8043]
[1732136837717,0.7828,3071.8,3070.6,0.8043]
[1732136837718,3.25637,3071.0,3070.6,0.8043]
[1732136838045,3.25611,3071.2,3070.6,4.06092]
[1732136838389,3.25622,3071.1,3070.6,4.06092]
[1732136838650,3.25622,3071.1,3070.7,0.532092]
[1732136838849,0.7828,3071.3,3070.6,0.8043]
[1732136839135,3.25695,3070.4,3069.8,3.25753]
[1732136839319,3.25636,3071.0,3070.2,0.8043]
[1732136839642,6.51272,3071.0,3070.4,3.25689]
[1732136839946,3.25636,3071.0,3070.4,3.25689]
[1732136840902,6.51272,3071.0,3070.4,3.25689]
[1732136841240,3.25636,3071.0,3070.6,0.8043]
[1732136842043,6.51225,3071.2,3070.6,0.8043]
[1732136842251,3.25619,3071.1,3070.6,0.8043]
[1732136842392,3.25627,3071.0,3070.6,1.57271533]
[1732136844945,3.25612,3071.2,3070.6,1.57271533]
[1732136845249,3.25612,3071.2,3070.7,3.25657]
[1732136847596,0.7917,3071.7,3070.7,0.7574]
[1732136847842,3.25563,3071.6,3070.7,0.7574]
[1732136848144,3.25563,3071.6,3071.2,0.7574]
[1732136848449,3.25593,3071.4,3071.2,0.7574]
[1732136849248,3.25575,3071.5,3071.2,0.7574]
[1732136849546,3.25548,3071.8,3071.2,0.7574]
[1732136849759,0.7827,3072.0,3071.2,4.414796]
[1732136849921,0.45748556,3071.9,3071.2,1.158746]
[1732136850115,3.2558,3071.5,3071.2,1.158746]
[1732136850657,3.25557,3071.7,3071.2,1.158746]
[1732136850798,3.2557,3071.6,3071.2,1.158746]
[1732136851865,3.25592,3071.4,3070.9,0.7835]
[1732136852070,3.25618,3071.1,3070.9,0.7835]
[1732136852820,3.25626,3071.0,3070.6,0.7546]
[1732136853070,3.25598,3071.3,3070.7,0.46375766]
[1732136853221,3.25598,3071.3,3070.7,3.72027766]
[1732136853427,6.512,3071.3,3070.7,3.72027766]
[1732136853767,3.25618,3071.1,3070.8,0.44748777]
[1732136853980,3.25598,3071.3,3070.7,0.46375766]
[1732136854146,6.51203,3071.3,3070.7,3.72032766]
[1732136854329,3.25616,3071.2,3070.7,3.72032766]
[1732136855255,0.822,3071.4,3070.7,3.72032766]
[1732136855256,3.25589,3071.4,3070.8,3.25639]
[1732136855507,3.25589,3071.4,3070.9,4.01092]
[1732136855642,3.25578,3071.5,3070.9,0.7546]
[1732136855833,3.25578,3071.5,3071.0,3.25625]
[1732136856227,3.25578,3071.5,3071.0,3.25621]
[1732136856526,3.25584,3071.4,3070.9,1.24682404]
[1732136856724,3.25584,3071.4,3070.9,4.50318404]
[1732136856928,3.25584,3071.4,3071.0,0.7759594]
[1732136857379,3.25574,3071.5,3071.0,4.0322194]
[1732136859444,3.25565,3071.6,3071.1,3.2561]
[1732136859745,3.25574,3071.5,3071.1,3.2561]
[1732136859944,3.25574,3071.5,3071.0,4.0321894]
[1732136860140,3.25584,3071.4,3071.1,0.47867894]
[1732136860374,3.25574,3071.5,3071.0,0.7759594]
[1732136860375,3.25597,3071.3,3071.0,0.7759594]
[1732136860577,3.25597,3071.3,3070.9,0.7546]
[1732136860578,3.25574,3071.5,3070.9,4.01087]
[1732136861639,3.25585,3071.4,3070.9,4.01087]
[1732136862453,3.25585,3071.4,3070.9,4.01095]
[1732136865883,3.25569,3071.6,3071.0,3.25625]
[1732136866187,3.25545,3071.8,3071.2,4.02269]
[1732136866854,3.25545,3071.8,3071.2,4.02267]
[1732136867056,3.25532,3071.9,3071.2,4.4650255]
[1732136867249,3.25573,3071.5,3071.2,0.7667]
[1732136867447,3.25573,3071.5,3070.9,0.7667]
[1732136867685,3.25584,3071.4,3070.9,0.7667]
[1732136867842,3.25573,3071.5,3070.9,0.7667]
[1732136868042,0.45748556,3071.4,3070.7,0.7667]
[1732136868384,0.45748556,3071.4,3070.3,0.7667]
[1732136868385,3.25639,3070.9,3070.3,0.7667]
[1732136868556,3.25639,3070.9,3070.3,4.426084]
[1732136868757,3.25639,3070.9,3070.3,4.426024]
[1732136869087,3.25639,3070.9,3070.3,4.426014]
[1732136869449,3.25639,3070.9,3070.4,3.25689]
[1732136870988,3.25629,3071.0,3070.3,1.169074]
[1732136871312,6.51262,3071.0,3070.4,3.25683]
[1732136871819,3.25629,3071.0,3070.4,3.25683]
[1732136871984,6.51265,3071.0,3070.4,3.25683]
[1732136872512,3.2564,3070.9,3070.4,3.25683]
[1732136872827,3.25649,3070.8,3070.3,0.7667]
[1732136873116,3.25649,3070.8,3070.4,3.25689]
[1732136873670,3.25649,3070.8,3070.3,7.28065]
[1732136873869,3.25637,3070.9,3070.4,3.25689]
[1732136875119,3.25638,3070.9,3070.4,3.25689]
[1732136875426,3.25638,3070.9,3070.5,3.25679]
[1732136876052,3.25655,3070.8,3070.4,0.728054]
[1732136876260,3.25665,3070.7,3070.3,0.7667]
[1732136876556,6.51286,3070.9,3070.3,4.02371]
[1732136876852,3.71401556,3070.8,3070.3,0.7667]
[1732136877054,3.25661,3070.7,3070.3,0.7667]
[1732136877864,3.25617,3071.1,3070.4,3.28946748]
[1732136878015,3.25629,3071.0,3070.7,0.8211]
[1732136878653,3.25629,3071.0,3070.3,3.25692]
[1732136878654,3.25629,3071.0,3070.5,0.8193]
[1732136879153,3.25654,3070.8,3070.5,0.8193]
[1732136880239,3.25631,3071.0,3070.5,0.8193]
[1732136880636,3.25609,3071.2,3070.7,3.25655]
[1732136880937,3.25609,3071.2,3070.9,0.786]
[1732136880938,3.2561,3071.2,3070.9,0.786]
[1732136881962,3.2559,3071.4,3070.9,4.04231]
[1732136882284,3.2559,3071.4,3070.9,0.786]
[1732136882285,6.51182,3071.4,3070.9,0.786]
[1732136882631,0.45748556,3071.6,3071.0,0.7517]
[1732136882831,4.02676,3072.2,3071.5,4.00742]
[1732136883028,4.02676,3072.2,3071.5,1.47802]
[1732136883029,3.25529,3072.0,3071.5,1.47802]
[1732136883279,3.25536,3071.9,3071.5,0.7517]
[1732136883465,3.25529,3072.0,3071.5,0.7517]
[1732136883676,3.25548,3071.8,3071.5,0.7517]
[1732136883876,3.25559,3071.7,3071.5,0.7517]
[1732136884181,0.45748556,3071.7,3071.3,0.8127]
[1732136884330,3.25563,3071.6,3071.1,0.325622]
[1732136884530,3.25563,3071.6,3071.0,0.8127]
[1732136884531,3.25603,3071.3,3071.0,0.8127]
[1732136885058,3.25585,3071.4,3071.0,0.8127]
[1732136885243,3.25559,3071.7,3071.0,1.219598]
[1732136885448,3.2558,3071.5,3071.0,4.0689]
[1732136885706,6.51119,3071.7,3071.1,3.25609]
[1732136886177,3.25573,3071.5,3071.0,4.06894]
[1732136886384,3.25573,3071.5,3071.0,0.8127]
[1732136886937,3.71303556,3071.7,3071.0,0.8127]
[1732136887337,3.25579,3071.5,3071.0,0.8127]
[1732136887580,3.25595,3071.3,3071.0,0.8127]
[1732136887740,3.25598,3071.3,3070.8,0.8288]
[1732136887942,3.25598,3071.3,3070.8,1.154454]
[1732136888272,3.25631,3071.0,3070.8,0.8288]
[1732136889175,3.25631,3071.0,3070.5,0.8288]
[1732136889378,6.51225,3071.2,3070.5,1.563068]
[1732136889581,3.25619,3071.1,3070.6,3.25667]
[1732136890278,0.7552,3071.5,3070.5,0.8288]
[1732136890279,3.25639,3070.9,3070.5,0.8288]
[1732136890476,3.25651,3070.8,3070.5,0.8288]
[1732136890944,1.10876956,3070.8,3070.1,0.8276]
[1732136891281,3.25697,3070.4,3070.1,0.8276]
[1732136891788,3.25685,3070.5,3070.1,0.8276]
[1732136892291,3.25692,3070.4,3070.1,0.8276]
[1732136892871,3.25711,3070.2,3070.1,0.8276]
[1732136893079,3.25731,3070.1,3069.4,3.25787]
[1732136893405,3.25731,3070.1,3069.6,4.05745]
[1732136893567,3.25684,3070.5,3069.8,3.25747]
[1732136893768,0.8198,3070.8,3069.7,0.7997]
[1732136894101,3.25669,3070.6,3069.9,4.05706]
[1732136894244,3.25669,3070.6,3070.1,3.25721]
[1732136894446,3.2566,3070.7,3070.2,0.7617]
[1732136894679,3.2567,3070.6,3070.2,0.7617]
[1732136894985,3.25647,3070.9,3070.3,3.658811]
[1732136895200,3.25647,3070.9,3070.3,3.25692]
[1732136895707,3.25647,3070.9,3070.4,0.7617]
[1732136895893,3.25619,3071.1,3070.5,3.25673]
[1732136896484,3.25628,3071.0,3070.4,4.0186]
[1732136896796,3.25607,3071.2,3070.6,3.25658]
[1732136896974,3.25607,3071.2,3070.7,3.25657]
[1732136897156,0.7777,3071.5,3070.8,4.01016]
[1732136897157,3.25584,3071.4,3070.8,4.01016]
[1732136897359,3.25584,3071.4,3070.8,0.7537]
[1732136897360,3.25608,3071.2,3070.8,0.7537]
[1732136898393,3.25709,3070.3,3069.8,1.36121447]
[1732136898616,3.25723,3070.1,3070.0,1.26]
[1732136898887,3.2571,3070.3,3070.0,1.26]
[1732136899101,3.2571,3070.3,3069.8,0.7628]
[1732136899244,3.25685,3070.5,3069.8,1.088563]
[1732136899450,3.25743,3069.9,3069.4,0.7594]
[1732136899667,3.25743,3069.9,3069.4,4.01736]
[1732136900276,3.25743,3069.9,3069.4,0.7594]
[1732136900482,6.51494,3069.9,3069.4,1.161141]
[1732136900690,3.2576,3069.8,3069.4,1.161141]
[1732136900897,0.8279,3070.2,3069.4,0.7594]
[1732136900898,3.25765,3069.7,3069.4,0.7594]
[1732136901113,3.25792,3069.5,3069.0,0.8012]
[1732136901405,3.25722,3070.1,3069.0,4.0595]
[1732136901712,3.25772,3069.7,3069.1,3.66423]
[1732136902013,3.25755,3069.8,3069.2,3.25807]
[1732136902210,3.25776,3069.6,3069.3,0.366402]
[1732136902428,3.25786,3069.5,3069.1,0.40595]
[1732136903062,3.25786,3069.5,3069.0,0.8012]
[1732136903428,3.25804,3069.4,3069.0,0.8012]
[1732136904364,3.25786,3069.5,3069.0,0.8012]
[1732136904901,3.25799,3069.4,3069.0,0.8012]
[1732136905097,3.25799,3069.4,3069.0,1.533024]
[1732136906142,3.25799,3069.4,3069.0,0.731824]
[1732136906297,3.25799,3069.4,3068.9,0.8142]
[1732136906497,3.25808,3069.3,3068.9,0.8142]
[1732136906699,3.25794,3069.5,3068.9,0.8142]
[1732136906938,3.25794,3069.5,3068.9,1.221471]
[1732136907459,1.23229168,3070.1,3069.2,3.2581]
[1732136907738,5.97324369,3070.6,3068.9,1.221471]
[1732136907739,3.25739,3070.0,3069.4,4.07213]
[1732136908052,3.25723,3070.1,3069.5,3.25783]
[1732136909193,0.7561,3070.4,3069.4,0.8142]
[1732136909194,3.25736,3070.0,3069.4,0.8142]
[1732136909397,3.25745,3069.9,3069.4,1.221422]
[1732136910117,3.25736,3070.0,3069.4,1.221422]
[1732136910118,3.25754,3069.8,3069.4,1.221422]
[1732136910696,6.51478,3070.0,3069.4,1.221422]
[1732136911293,3.25736,3070.0,3069.4,4.479322]
[1732136911543,3.25714,3070.2,3069.5,7.6151412]
[1732136911544,6.51435,3070.2,3069.5,7.6151412]
[1732136911743,3.25714,3070.2,3069.5,3.25777]
[1732136911897,3.25714,3070.2,3069.6,3.25774]
[1732136912211,6.51434,3070.2,3069.6,3.25774]
[1732136912418,3.25723,3070.1,3069.6,3.25774]
[1732136912622,3.25723,3070.1,3069.4,0.8142]
[1732136912924,3.25723,3070.1,3069.5,0.407221]
[1732136913325,3.25723,3070.1,3069.5,3.665061]
[1732136913643,6.51454,3070.1,3069.5,0.407221]
[1732136913815,3.25723,3070.1,3069.5,0.407221]
[1732136913995,3.25739,3070.0,3069.5,0.407221]
[1732136914453,3.25739,3070.0,3069.5,3.665051]
[1732136916646,3.25751,3069.9,3069.6,0.4479251]
[1732136916888,3.25751,3069.9,3069.4,0.8142]
[1732136917396,3.25765,3069.7,3069.4,0.8142]
[1732136917913,3.25765,3069.7,3069.0,0.8309]
[1732136918085,3.25785,3069.5,3069.0,0.8309]
[1732136918278,3.25785,3069.5,3069.0,1.565671]
[1732136918595,3.25785,3069.5,3069.0,4.824051]
[1732136920067,6.51539,3069.7,3069.1,3.25825]
[1732136920263,3.25765,3069.7,3069.1,3.25825]
[1732136920709,3.25765,3069.7,3069.1,4.0664811]
[1732136921026,3.25778,3069.6,3069.1,4.0664811]
[1732136921167,3.25786,3069.5,3069.1,0.8082311]
[1732136922297,6.51578,3069.5,3069.1,0.8082311]
[1732136922506,3.25786,3069.5,3069.0,0.8309]
[1732136922886,6.5158,3069.5,3069.0,0.8309]
[1732136923085,3.25786,3069.5,3069.0,0.8309]
[1732136923394,3.25789,3069.5,3069.0,4.08926]
[1732136923608,3.25789,3069.5,3069.0,4.824025]
[1732136924279,3.25789,3069.5,3069.0,1.565665]
[1732136924596,3.25771,3069.7,3069.1,6.5164]
[1732136924963,3.25771,3069.7,3069.1,3.25819]
[1732136925479,3.25771,3069.7,3069.1,6.51644]
[1732136925687,3.2577,3069.7,3069.1,3.25823]
[1732136925918,3.2577,3069.7,3069.1,3.667143]
[1732136926069,3.2577,3069.7,3069.2,3.25814]
[1732136926880,3.25735,3070.0,3069.5,0.7551]
[1732136927207,3.25735,3070.0,3069.5,4.01289]
[1732136927406,3.25749,3069.9,3069.5,0.7551]
[1732136929172,3.25728,3070.1,3069.5,4.01287]
[1732136930065,3.25739,3070.0,3069.5,4.01287]
[1732136930491,3.25728,3070.1,3069.5,7.27065]
[1732136930717,3.25728,3070.1,3069.6,3.25772]
[1732136931026,6.51459,3070.1,3069.6,3.25772]
[1732136931306,3.25734,3070.0,3069.5,4.01295]
[1732136931820,0.8062,3070.4,3069.9,3.25742]
[1732136931982,0.8062,3070.7,3069.8,3.25754]
[1732136932185,3.25644,3070.9,3070.3,3.25698]
[1732136932390,3.25656,3070.8,3070.1,4.01225]
[1732136932589,3.25656,3070.8,3070.2,3.25709]
[1732136932897,3.25656,3070.8,3070.1,4.01225]
[1732136932898,3.2566,3070.7,3070.1,4.01225]
[1732136933095,3.25672,3070.6,3070.1,0.7551]
[1732136933417,3.25686,3070.5,3069.8,4.01256]
[1732136933619,3.2569,3070.4,3069.8,4.01256]
[1732136933972,3.25715,3070.2,3069.8,0.7551]
[1732136934712,3.25723,3070.1,3069.8,0.7551]
[1732136934917,3.25709,3070.3,3069.8,0.7551]
[1732136935139,3.25711,3070.2,3069.8,0.7551]
[1732136935418,3.25703,3070.3,3069.8,4.01263]
[1732136935787,3.25703,3070.3,3069.8,4.739655]
[1732136936318,4.06306,3070.5,3069.9,3.25742]
[1732136936916,3.25691,3070.4,3069.9,3.25742]
[1732136937116,0.8062,3070.5,3069.9,3.25742]
[1732136937117,0.8062,3070.5,3070.0,3.25731]
[1732136937415,0.45752573,3070.9,3070.2,3.25705]
[1732136937416,0.8162,3070.7,3070.2,3.25705]
[1732136937712,3.25646,3070.9,3070.3,3.25699]
[1732136937916,4.00726,3070.9,3070.3,3.25699]
[1732136938216,4.00726,3070.9,3070.4,0.8217]
[1732136938516,4.00725,3070.9,3070.4,0.8217]
[1732136938818,0.7508,3070.9,3070.5,3.25679]
[1732136939011,3.25621,3071.1,3070.5,3.25679]
[1732136939515,4.0068,3071.3,3070.7,3.25657]
[1732136939700,3.25621,3071.1,3070.5,6.51344]
[1732136939907,3.25628,3071.0,3070.5,3.25672]
[1732136940074,4.9107683,3071.3,3070.4,1.229569]
[1732136940281,6.51244,3071.1,3070.6,3.25661]
[1732136940502,3.25629,3071.0,3070.5,3.25675]
[1732136940699,3.25629,3071.0,3070.4,4.07858]
[1732136940899,3.25629,3071.0,3070.4,4.07855]
[1732136941118,3.25638,3070.9,3070.4,4.07853]
[1732136941328,3.25665,3070.7,3070.2,3.25704]
[1732136941711,0.7913,3070.8,3070.3,3.25694]
[1732136941912,4.04788,3070.8,3070.1,4.08572]
[1732136942225,3.25659,3070.7,3070.2,3.25707]
[1732136942530,3.25659,3070.7,3070.1,4.820118]
[1732136942691,0.45752573,3070.7,3070.0,3.25726]
[1732136942878,3.71410573,3070.7,3070.0,3.25725]
[1732136943078,3.25658,3070.7,3070.2,3.25705]
[1732136943274,3.25669,3070.6,3070.0,3.25723]
[1732136943517,3.25669,3070.6,3070.0,3.99155]
[1732136943693,3.25674,3070.6,3070.1,3.2572]
[1732136945318,4.04778,3070.8,3070.1,3.25712]
[1732136945524,3.25648,3070.8,3070.3,4.03125]
[1732136947338,3.25639,3070.9,3070.4,3.25684]
[1732136947627,3.25633,3071.0,3070.3,4.03124]
[1732136947778,3.25633,3071.0,3070.4,3.659965]
[1732136948424,6.51267,3071.0,3070.4,3.659965]
[1732136948824,3.25633,3071.0,3070.4,3.659965]
[1732136949122,6.51268,3071.0,3070.4,3.659965]
[1732136949939,6.51267,3071.0,3070.4,3.659965]
[1732136950256,1.22962573,3071.3,3070.6,3.25668]
[1732136950400,3.25606,3071.2,3070.7,0.8148]
[1732136950591,4.02806,3071.3,3070.7,0.8148]
[1732136950817,4.02806,3071.3,3070.8,3.25646]
[1732136951023,3.25606,3071.2,3070.7,4.478518]
[1732136951220,3.25606,3071.2,3070.7,1.221948]
[1732136951418,0.7721,3071.3,3070.7,1.221948]
[1732136951612,0.7721,3071.3,3070.8,3.25642]
[1732136952010,3.25608,3071.2,3070.7,0.8148]
[1732136952227,6.51184,3071.4,3070.8,3.25642]
[1732136952439,3.25592,3071.4,3070.8,3.25642]
[1732136952630,3.25592,3071.4,3070.8,3.25641]
[1732136952797,3.25592,3071.4,3070.7,4.07128]
[1732136952997,3.25592,3071.4,3070.8,3.25648]
[1732136953198,3.25597,3071.3,3070.8,3.25648]
[1732136953457,3.25586,3071.4,3070.9,3.25635]
[1732136953597,0.7721,3071.5,3070.8,3.663608]
[1732136953792,3.25586,3071.4,3070.9,3.25631]
[1732136955865,0.7721,3071.5,3070.9,3.25631]
[1732136955866,4.02792,3071.5,3070.9,3.25628]
[1732136956001,4.02792,3071.5,3071.0,3.25626]
[1732136956743,7.28373,3071.5,3070.9,3.25628]
[1732136956939,4.02791,3071.5,3070.9,6.51258]
[1732136957155,0.7782,3071.7,3071.0,0.03256145]
[1732136957337,3.25547,3071.8,3071.2,3.25599]
[1732136957549,3.25532,3071.9,3071.2,3.256]
[1732136957700,3.25532,3071.9,3071.3,3.25595]
[1732136957897,3.25543,3071.8,3071.2,3.656889]
[1732136958095,3.25559,3071.7,3071.1,4.00904]
[1732136958358,3.25559,3071.7,3071.1,0.7529]
[1732136958698,3.25559,3071.7,3071.2,6.51197]
[1732136959126,3.25559,3071.7,3071.2,3.25598]
[1732136959634,3.25537,3071.9,3071.3,3.25593]
[1732136959825,3.25544,3071.8,3071.3,3.25593]
[1732136960039,3.25557,3071.7,3071.2,3.25598]
[1732136960813,3.25537,3071.9,3071.3,3.25587]
[1732136961058,3.25547,3071.8,3071.3,3.25594]
[1732136964093,0.7782,3072.0,3071.6,3.25553]
[1732136964242,0.7782,3072.0,3071.2,0.43344424]
[1732136964243,0.7782,3072.0,3071.7,0.325553]
[1732136964448,4.03348,3072.0,3071.5,3.25572]
[1732136964884,4.03348,3072.0,3071.6,3.25562]
[1732136965458,0.7782,3072.0,3071.6,3.25562]
[1732136965658,4.03348,3072.0,3071.4,3.6214798]
[1732136965860,3.25538,3071.9,3071.4,3.6214798]
[1732136966056,3.25531,3071.9,3071.4,0.3656698]
[1732136966285,3.25536,3071.9,3071.4,3.6214498]
[1732136966873,4.03341,3072.0,3071.5,3.25572]
[1732136967203,3.25532,3071.9,3071.4,3.6215098]
[1732136967509,3.25532,3071.9,3071.4,3.25577]
[1732136967643,3.25532,3071.9,3071.4,6.51154]
[1732136967847,3.25532,3071.9,3071.4,3.25577]
[1732136968093,4.03341,3072.0,3071.5,3.25572]
[1732136969155,4.03341,3072.0,3071.2,3.25599]
[1732136969156,0.7782,3072.0,3071.2,3.25599]
[1732136969367,3.25533,3071.9,3071.4,3.25582]
[1732136969902,0.7782,3072.0,3071.4,3.25582]
[1732136970047,0.7782,3072.0,3071.5,3.25572]
[1732136970563,3.25532,3071.9,3071.4,3.25578]
[1732136970898,0.7782,3072.0,3071.5,3.25571]
[1732136970899,4.03344,3072.0,3071.5,3.25571]
[1732136973158,0.7782,3072.0,3071.3,3.25594]
[1732136973361,3.25536,3071.9,3071.4,3.25584]
[1732136974296,3.25536,3071.9,3070.4,0.19438942]
[1732136974297,3.25571,3071.6,3070.6,0.8186]
[1732136974505,0.7926,3071.1,3070.6,0.8186]
[1732136974654,0.7926,3071.4,3070.6,0.8186]
[1732136974859,0.7926,3071.4,3070.8,3.25646]
[1732136975171,3.25635,3071.0,3070.3,0.8259]
[1732136975496,3.25688,3070.5,3069.9,0.8259]
[1732136975656,3.25688,3070.5,3069.7,1.8359]
[1732136975657,4.05537,3070.4,3069.7,1.8359]
[1732136975863,3.25658,3070.7,3069.7,1.8359]
[1732136976097,3.25703,3070.3,3069.7,2.01949]
[1732136976404,3.25682,3070.5,3069.7,2.01949]
[1732136976702,3.2568,3070.5,3069.7,2.01949]
[1732136977067,3.25664,3070.7,3069.7,5.27709]
[1732136977268,6.51332,3070.7,3069.8,3.25753]
[1732136977498,3.25664,3070.7,3069.9,0.426702]
[1732136977707,3.25699,3070.4,3069.9,0.426702]
[1732136977859,3.25699,3070.4,3069.7,1.00949]
[1732136978198,3.25699,3070.4,3069.7,0.8259]
[1732136978603,6.51397,3070.4,3069.7,0.8259]
[1732136978791,3.25714,3070.2,3069.7,0.8259]
[1732136979100,3.25722,3070.1,3069.7,0.8259]
[1732136979954,3.2575,3069.9,3069.7,0.8259]
[1732136980162,3.2575,3069.9,3069.1,3.0]
[1732136980163,3.25803,3069.4,3069.1,0.798]
[1732136980372,3.25816,3069.3,3069.1,0.798]
[1732136980904,3.25803,3069.4,3069.1,0.798]
[1732136981210,4.01534,3069.8,3069.1,0.798]
[1732136981211,3.25814,3069.3,3069.1,0.798]
[1732136981405,3.25814,3069.3,3068.5,0.03258051]
[1732136981710,3.25814,3069.3,3068.7,0.7937]
[1732136981711,3.25812,3069.3,3068.7,0.7937]
[1732136981857,3.25824,3069.2,3068.8,0.18037]
[1732136982062,3.25824,3069.2,3068.7,0.7937]
[1732136982259,3.25802,3069.4,3068.7,0.7937]
[1732136982707,3.25802,3069.4,3068.8,0.405248]
[1732136983200,3.25808,3069.3,3068.8,0.405248]
[1732136983857,3.25802,3069.4,3068.8,0.405248]
[1732136983858,3.25818,3069.2,3068.8,0.405248]
[1732136984497,3.25802,3069.4,3068.8,0.405248]
[1732136984663,3.25809,3069.3,3068.8,0.405248]
[1732136985363,3.25802,3069.4,3068.8,0.405248]
[1732136985803,3.25807,3069.3,3068.8,0.405248]
[1732136986122,3.25802,3069.4,3068.8,0.405248]
[1732136986323,3.25817,3069.2,3068.8,0.405248]
[1732136986501,3.25837,3069.1,3068.7,0.7937]
[1732136987281,3.25817,3069.2,3068.7,3.7937]
[1732136987799,3.2585,3068.9,3068.7,0.7937]
[1732136987983,3.25855,3068.9,3068.7,0.7937]
[1732136988185,3.25898,3068.5,3068.0,0.7538]
[1732136988422,3.25898,3068.5,3068.2,1.01]
[1732136989035,3.25913,3068.3,3068.0,0.7538]
[1732136989381,3.25898,3068.5,3068.0,0.7538]
[1732136989622,2.97324369,3068.6,3068.0,0.7538]
[1732136989623,3.25903,3068.4,3068.0,0.7538]
[1732136990531,6.23206369,3068.6,3068.0,0.7538]
[1732136990828,3.25903,3068.4,3068.0,1.481092]
[1732136990991,3.25903,3068.4,3068.0,0.7538]
[1732136991198,6.23206369,3068.6,3068.0,0.7538]
[1732136991408,9.49097369,3068.6,3068.0,0.7538]
[1732136991999,3.25896,3068.5,3068.0,0.7538]
[1732136992225,3.25904,3068.4,3068.0,1.155134]
[1732136992384,6.23206369,3068.6,3068.0,0.7538]
[1732136992784,2.97324369,3068.3,3067.7,1.11404229]
[1732136992987,6.23269369,3068.0,3067.7,0.7521]
[1732136993231,3.25962,3067.9,3067.4,0.7521]
[1732136993389,3.25967,3067.8,3067.4,1.1565874]